[Event "Fagernes GM Open Autumn 2024"]
[Site "Fagernes"]
[Date "2024.10.06"]
[Round "1.28"]
[White "Nagare Akhilesh"]
[Black "Gasland, Lukas Dominik"]
[Result "1-0"]
[ECO "A30"]
[WhiteElo "2245"]
[BlackElo "1905"]
[Annotator "RC"]
[PlyCount "121"]
[EventDate "2024.10.03"]
[EventType "swiss"]
[EventCountry "NOR"]
[SourceTitle "playchess.com"]
[Source "ChessBase"]
[SourceQuality "1"]
[TimeControl "40/6000:2400+30"]

1. Nf3 {[%emt 0:00:00]} Nf6 {[%emt 0:00:03]} 2. b3 {[%emt 0:00:00]} g6 {[%emt 0:00:59]} 3. Bb2 {[%emt 0:00:00]} Bg7 {[%emt 0:00:00]} 4. c4 {[%emt 0:00:00]} O-O {[%emt 0:02:26]} 5. e3 {[%emt 0:00:00]} c5 {[%emt 0:00:27]} 6. Be2 {[%emt 0:00:00]} b6 {[%emt 0:03:58]} 7. O-O {[%emt 0:00:00]} Bb7 {[%emt 0:00:09]} 8. Qc2 {[%emt 0:00:00]} Nc6 {[%emt 0:01:53]} 9. a3 {[%emt 0:00:00]} d5 {[%emt 0:02:13]} 10. cxd5 {[%emt 0:00:00]} Nxd5 {[%emt 0:00:10]} 11. d3 {[%emt 0:00:15]} e5 {[%emt 0:01:13]} 12. Nbd2 {[%emt 0:00:00]} Qd7 {[%emt 0:03:21]} 13. Rfd1 {[%emt 0:01:10]} Rfe8 {[%emt 0:00:35]} 14. Rac1 {[%emt 0:02:36]} Rad8 {[%emt 0:01:16]} 15. Qb1 {[%emt 0:00:00]} f5 {[%emt 0:08:17]} 16. Bf1 {[%emt 0:02:42]} h6 {[%emt 0:01:29]} 17. g3 {[%emt 0:11:37]} g5 {[%emt 0:03:48]} 18. e4 {[%emt 0:05:39]} Nc7 {[%emt 0:09:11]} 19. b4 {[%emt 0:05:43]} cxb4 {[%emt 0:10:20]} 20. axb4 {[%emt 0:00:00]} Ne6 {[%emt 0:02:33]} 21. exf5 {[%emt 0:05:29]} Ned4 {[%emt 0:00:36]} 22. Bxd4 {[%emt 0:01:13]} Nxd4 {[%emt 0:01:54]} 23. Nxd4 {[%emt 0:03:44]} exd4 {[%emt 0:02:45]} 24. Bh3 {[%emt 0:01:17]} h5 {[%emt 0:02:41]} 25. Ne4 {[%emt 0:03:32]} g4 {[%emt 0:01:16]} 26. Bg2 {[%emt 0:00:00]} Qxf5 {[%emt 0:00:54]} 27. Qa2+ {[%emt 0:00:09]} Bd5 {[%emt 0:08:46]} 28. Qxa7 {[%emt 0:00:00]} Qg6 {[%emt 0:00:00]} 29. Rc7 {[%emt 0:10:38]} Kh8 {[%emt 0:08:31]} 30. Rd7 {[%emt 0:07:43]} Ra8 {[%emt 0:03:12]} 31. Qc7 {[%emt 0:00:45]} Be5 {[%emt 0:00:56]} 32. Qc1 {[%emt 0:01:57]} Bc6 {[%emt 0:00:00]} 33. Rd6 {[%emt 0:01:56]} Bxd6 {[%emt 0:02:47]} 34. Qxc6 {[%emt 0:00:59]} Rad8 {[%emt 0:04:15]} 35. Qxb6 {[%emt 0:00:06]} Qe6 {[%emt 0:00:00]} 36. Qxd4+ {[%emt 0:00:58]} Be5 {[%emt 0:00:00]} 37. Qc5 {[%emt 0:04:51]} Qb3 {[%emt 0:00:00]} 38. Re1 {[%emt 0:03:48]} Qxd3 {[%emt 0:01:12]} 39. Nf6 {[%emt 0:02:14]} Bxf6 {[%emt 0:01:49]} 40. Rxe8+ {[%emt 0:00:00]} Rxe8 {[%emt 0:00:00]} 41. Qxh5+ {[%emt 0:40:10]} Kg7 {[%emt 0:40:18]} 42. Qxe8 {[%emt 0:00:06]} Qb1+ {[%emt 0:00:05]} 43. Bf1 {[%emt 0:00:09]} Qxb4 {[%emt 0:00:06]} 44. Bd3 {[%emt 0:02:53]} Qd4 {[%emt 0:00:00]} 45. Qg6+ {[%emt 0:00:00]} Kf8 {[%emt 0:00:00]} 46. Qe4 {[%emt 0:00:00]} Kf7 {[%emt 0:00:00]} 47. Qxd4 {[%emt 0:00:00]} Bxd4 {[%emt 0:00:00]} 48. Bf5 {[%emt 0:00:00]} Kf6 {[%emt 0:00:00]} 49. Bxg4 {[%emt 0:00:00]} Ba7 {[%emt 0:00:00]} 50. Kg2 {[%emt 0:00:00]} Bb6 {[%emt 0:00:00]} 51. Be2 {[%emt 0:00:00]} Ba7 {[%emt 0:00:00]} 52. h4 {[%emt 0:00:00]} Bd4 {[%emt 0:00:00]} 53. Bd3 {[%emt 0:00:00]} Bc3 {[%emt 0:00:00]} 54. Bc2 {[%emt 0:00:00]} Bb4 {[%emt 0:00:00]} 55. g4 {[%emt 0:00:00]} Be1 {[%emt 0:00:00]} 56. g5+ {[%emt 0:00:00]} Kg7 {[%emt 0:00:00]} 57. Kg3 {[%emt 0:00:00]} Kf7 {[%emt 0:00:00]} 58. h5 {[%emt 0:00:00]} Bd2 {[%emt 0:00:00]} 59. f4 {[%emt 0:00:00]} Bc3 {[%emt 0:00:00]} 60. Kg4 {[%emt 0:00:00]} Ba1 {[%emt 0:00:00]} 61. h6 {[%emt 0:00:00]} 1-0

[Event "Fagernes GM Open Autumn 2024"]
[Site "Fagernes"]
[Date "2024.10.07"]
[Round "2.1"]
[White "Jumabayev, Rinat"]
[Black "Sidhant, Mohapatra"]
[Result "1/2-1/2"]
[ECO "A14"]
[WhiteElo "2577"]
[BlackElo "2369"]
[Annotator "TA"]
[PlyCount "83"]
[EventDate "2024.10.03"]
[EventType "swiss"]
[EventCountry "NOR"]
[SourceTitle "playchess.com"]
[Source "ChessBase"]
[SourceQuality "1"]
[TimeControl "40/6000:2400+30"]

{[%evp 10,83,13,0,10,-12,7,0,0,0,22,31,35,20,39,33,29,16,15,20,20,14,23,0,17,20,23,21,16,20,6,0,0,0,0,0,8,0,0,-2,19,6,8,-1,1,0,0,8,7,8,8,0,0,0,0,0,0,0,0,0,0,0,0,0,0,0,0,0,0,0,0,0,0,0,2,2]} 1. Nf3 {[%emt 0:05:12]} d5 {[%emt 0:01:00]} 2. g3 {[%emt 0:00:00]} Nf6 {[%emt 0:00:00]} 3. Bg2 {[%emt 0:00:00]} e6 {[%emt 0:00:00]} 4. O-O {[%emt 0:00:00]} Be7 {[%emt 0:00:00]} 5. c4 {[%emt 0:03:28]} O-O {[%emt 0:00:00]} 6. d3 {[%emt 0:00:00]} Re8 {[%emt 0:06:43]} 7. Nc3 {[%emt 0:06:40]} c5 {[%emt 0:00:44]} 8. cxd5 {[%emt 0:00:35]} Nxd5 {[%emt 0:00:22]} 9. d4 {[%emt 0:06:22]} cxd4 {[%emt 0:12:05]} 10. Nxd5 {[%emt 0:03:39]} exd5 {[%emt 0:08:12]} 11. Nxd4 {[%emt 0:01:33]} Bf6 {[%emt 0:00:19]} 12. Be3 {[%emt 0:06:51]} Nc6 {[%emt 0:02:32]} 13. Nxc6 {[%emt 0:00:00]} bxc6 {[%emt 0:00:00]} 14. Rc1 {[%emt 0:00:00]} Bd7 {[%emt 0:01:57]} 15. Qd2 {[%emt 0:13:28]} a5 {[%emt 0:06:34]} 16. Rc2 {[%emt 0:02:56]} a4 {[%emt 0:02:03]} 17. Bd4 {[%emt 0:02:14]} Rb8 {[%emt 0:01:21]} 18. e3 {[%emt 0:03:31]} Bxd4 {[%emt 0:08:41] The position is equal.} 19. Qxd4 {[%emt 0:00:20]} Qb6 {[%emt 0:00:00]} 20. Qxa4 {[%emt 0:17:59] And now Bxd5 would win.} Ra8 {[%emt 0:00:00]} 21. Qb3 {[%emt 0:02:42]} Qxb3 {[%emt 0:00:00]} 22. axb3 {[%emt 0:00:00]} Reb8 {[%emt 0:04:35]} 23. Rc3 {[%emt 0:00:00]} Ra2 {[%emt 0:00:00]} 24. Rb1 {[%emt 0:00:00]} Bf5 {[%emt 0:00:00]} 25. Rbc1 {[%emt 0:13:18]} Bd7 {[%emt 0:00:00]} 26. Rb1 {[%emt 0:02:17]} Bf5 {[%emt 0:00:00]} 27. Rbc1 {[%emt 0:00:25]} Bd7 {[%emt 0:00:00]} 28. e4 {[%emt 0:00:00]} dxe4 {[%emt 0:10:36]} 29. Bxe4 {[%emt 0:00:00]} g6 {[%emt 0:00:00]} 30. Rb1 {[%emt 0:04:53]} Be6 {[%emt 0:01:14]} 31. Bxc6 {[%emt 0:00:10]} Bxb3 {[%emt 0:00:00]} 32. h4 {[%emt 0:00:44]} Rb4 {[%emt 0:00:00]} 33. Bf3 {[%emt 0:00:03]} Be6 {[%emt 0:00:00]} 34. b3 {[%emt 0:00:00]} Bf5 {[%emt 0:00:00]} 35. Re1 {[%emt 0:00:00]} Be6 {[%emt 0:00:28]} 36. Rb1 {[%emt 0:00:00]} Bf5 {[%emt 0:00:52]} 37. Rd1 {[%emt 0:00:00]} Rb2 {[%emt 0:00:33]} 38. Rc7 {[%emt 0:00:07]} Be6 {[%emt 0:00:27]} 39. Bd5 {[%emt 0:00:00]} Bxd5 {[%emt 0:00:00]} 40. Rxd5 {[%emt 0:00:00] [#] Rd8+ is the strong threat.} R4xb3 {[%emt 0:00:00]} 41. Kg2 {[%emt 0:40:33] Prevents Rf3. Hoping for Rd8+.} Rb7 {[%emt 0:40:01]} 42. Rxb7 {[%emt 0:00:03] Weighted Error Value: White=0.04 (flawless) /Black=0.04 (flawless) .  OK:         	White=15    	Black=19     Best:        	---       	Black=1} 1/2-1/2

[Event "Fagernes GM Open Autumn 2024"]
[Site "Fagernes"]
[Date "2024.10.07"]
[Round "2.2"]
[White "Urkedal, Frode Olav Olsen"]
[Black "Carlsson, Ludvig"]
[Result "1-0"]
[ECO "E04"]
[WhiteElo "2559"]
[BlackElo "2334"]
[Annotator "TA"]
[PlyCount "53"]
[EventDate "2024.10.03"]
[EventType "swiss"]
[EventCountry "NOR"]
[SourceTitle "playchess.com"]
[Source "ChessBase"]
[SourceQuality "1"]
[TimeControl "40/6000:2400+30"]

{[%evp 18,53,11,25,20,23,20,7,9,15,10,0,0,0,22,22,32,28,26,-16,-3,-7,-8,-13,477,444,517,510,522,516,520,527,513,515,632,650,582,510]} 1. d4 {[%emt 0:01:24]} Nf6 {[%emt 0:00:00]} 2. c4 {[%emt 0:00:00]} e6 {[%emt 0:00:00]} 3. g3 {[%emt 0:00:00]} d5 {[%emt 0:00:00]} 4. Bg2 {[%emt 0:00:00]} dxc4 {[%emt 0:00:00]} 5. Nf3 {[%emt 0:00:00]} c5 {[%emt 0:00:00]} 6. O-O {[%emt 0:00:00]} Nc6 {[%emt 0:00:00]} 7. Qa4 {[%emt 0:01:36]} Bd7 {[%emt 0:01:01]} 8. Qxc4 {[%emt 0:00:00]} cxd4 {[%emt 0:00:00]} 9. Nxd4 {[%emt 0:00:07]} Rc8 {[%emt 0:00:00]} 10. Nc3 {[%emt 0:00:33]} Nxd4 {[%emt 0:00:00]} 11. Qxd4 {[%emt 0:00:00]} Bc5 {[%emt 0:00:00]} 12. Qf4 {[%emt 0:02:46]} Bc6 {[%emt 0:00:00] Die Stellung ist ausgeglichen.} 13. Rd1 {[%emt 0:00:03]} (13. Bxc6+ {vereinfacht} Rxc6 14. Rd1 Qc8 15. e4) 13... Qb6 {[%emt 0:02:19]} 14. Na4 {[%emt 0:04:16]} (14. Bxc6+ {vereinfacht} Qxc6 15. Be3 O-O 16. Rac1) 14... Bxf2+ {[%emt 0:00:44]} 15. Kf1 {[%emt 0:00:00][%cal Bg1f1,Bf1g2,Bg2f2,Bf2e3][%mdl 32]} Bxg2+ {[%emt 0:05:02]} 16. Kxg2 {[%emt 0:00:00]} Qc6+ {[%emt 0:00:00]} 17. Kxf2 {[%emt 0:00:00] [#] Nc3 wäre nun fies.} Ne4+ {[%emt 0:00:00]} 18. Ke3 {[%emt 0:00:00]} f5 {[%emt 0:05:16][%cal Bf7f5,Bf5e4][%mdl 32]} (18... Qxa4 $2 19. Rd4 (19. Qxe4 $2 Qxd1 20. Qd4 Qxd4+ 21. Kxd4 Rd8+ 22. Ke3 Rd1 $19) 19... Qa5 20. Qxe4 $18 (20. Rxe4 Qe1 $14)) 19. Qe5 $1 {[%emt 0:02:10]} O-O {[%emt 0:02:52][%cal Of8d8] Und jetzt ...Rfd8! wäre schön.} 20. Nc3 $1 {[%emt 0:00:00][%cal Rc3e4]} Kh8 $2 {[%emt 0:23:35][%mdl 8192] Danach kann Schwarz die Partie nicht mehr halten.} (20... Qb6+ $1 $11 21. Qd4 Rc5) 21. Nxe4 $18 {[%emt 0:05:12] Weiß steht klar auf Gewinn.} fxe4 {[%emt 0:01:27]} 22. Rd6 {[%emt 0:00:00]} (22. Qxe4 $2 Qc5+ 23. Qd4 Qg5+ 24. Kd3 Qf5+ 25. Ke3 (25. e4 $2 Qf3+ 26. Be3 Rfd8 $19) 25... Qf2+ 26. Kd3 Qxd4+ (26... Qxh2 27. Bf4 $17) 27. Kxd4 Rfd8+ 28. Ke3 Rxd1 $19) 22... Qc7 {[%emt 0:04:26]} 23. Bd2 {[%emt 0:07:07]} (23. Qxe6 Qc5+ (23... Rf6 $2 24. Qd7 $19) 24. Rd4 Qg5+ 25. Kxe4 Qb5 $19) ({Lieber nicht} 23. Rxe6 Qf7 24. Kd2 (24. Qxe4 $2 Qf2+ 25. Kd2 Rfd8+ $19) (24. Kxe4 $2 Rce8 $19) 24... Qf2 $11 (24... Qf1 25. Qxe4 Rfd8+ 26. Ke3 $11)) 23... Rf5 {[%emt 0:02:56]} 24. Qxe6 {[%emt 0:04:29]} (24. Qxe4 $2 {geht unter.} Qxd6 25. Bc3 Rxc3+ 26. bxc3 Re5 $19) 24... Qc5+ {[%emt 0:01:17]} 25. Rd4 $1 {[%emt 0:00:00][%cal Oa1c1] [#] Und Rc1! würde nun gewinnen.} Qf8 {[%emt 0:15:58]} 26. Bb4 {[%emt 0:00:25]} (26. Qxe4 Re8 27. Bc3 Rxe4+ 28. Rxe4 Qc5+ 29. Bd4 Qc6 $11) 26... Rf3+ {[%emt 0:00:05]} 27. Kxe4 {[%emt 0:00:00] Gewichteter Fehlerwert: Weiß=0.05 (makellos) /Schwarz=0.51.  Verlustzug:     	---       	Schwarz=1     Ungenau:       	Weiß=1     	---        OK:         	Weiß=5     	Schwarz=11    Bester:       	Weiß=3     	---        Stark:        	Weiß=3     	---} 1-0

[Event "Fagernes GM Open Autumn 2024"]
[Site "Fagernes"]
[Date "2024.10.07"]
[Round "2.3"]
[White "Raja Rithvik R"]
[Black "Eliseev, Sergey"]
[Result "1-0"]
[ECO "D31"]
[WhiteElo "2514"]
[BlackElo "2276"]
[Annotator "RC"]
[PlyCount "63"]
[EventDate "2024.10.03"]
[EventType "swiss"]
[EventCountry "NOR"]
[SourceTitle "playchess.com"]
[Source "ChessBase"]
[SourceQuality "1"]
[TimeControl "40/6000:2400+30"]

1. d4 {[%emt 0:00:00]} d5 {[%emt 0:10:07]} 2. c4 {[%emt 0:00:00]} e6 {[%emt 0:00:00]} 3. Nc3 {[%emt 0:00:00]} a6 {[%emt 0:00:00]} 4. cxd5 {[%emt 0:00:00]} exd5 {[%emt 0:00:00]} 5. Nf3 {[%emt 0:00:00]} h6 {[%emt 0:00:00]} 6. Ne5 {[%emt 0:00:00]} Nf6 {[%emt 0:00:00]} 7. e4 {[%emt 0:00:00]} Be6 {[%emt 0:13:32]} 8. exd5 {[%emt 0:00:06]} Nxd5 {[%emt 0:00:34]} 9. Bc4 {[%emt 0:00:00]} Nxc3 {[%emt 0:07:47]} 10. bxc3 {[%emt 0:00:00]} Bxc4 {[%emt 0:00:00]} 11. Nxc4 {[%emt 0:00:00]} Qd5 {[%emt 0:06:12]} 12. Ne3 {[%emt 0:00:00]} Qc6 {[%emt 0:07:10]} 13. O-O {[%emt 0:12:48]} Nd7 {[%emt 0:04:18]} 14. Rb1 {[%emt 0:08:13]} O-O-O {[%emt 0:07:03]} 15. Qb3 {[%emt 0:01:12]} Qb6 {[%emt 0:00:46]} 16. Qc2 {[%emt 0:00:51]} Qg6 {[%emt 0:00:39]} 17. Nf5 {[%emt 0:22:32]} Nb6 {[%emt 0:08:18]} 18. c4 {[%emt 0:00:25]} Nxc4 {[%emt 0:07:36]} 19. Bf4 {[%emt 0:00:19]} b5 {[%emt 0:00:18]} 20. a4 {[%emt 0:08:05]} Rd5 {[%emt 0:09:04]} 21. axb5 {[%emt 0:00:00]} axb5 {[%emt 0:00:06]} 22. Rxb5 {[%emt 0:16:25]} Rxb5 {[%emt 0:00:00]} 23. Qxc4 {[%emt 0:00:00]} Rb7 {[%emt 0:00:00]} 24. Qa4 {[%emt 0:02:48]} Bb4 {[%emt 0:01:05]} 25. Ne3 {[%emt 0:02:19]} Rd8 {[%emt 0:06:37]} 26. Nd5 {[%emt 0:00:20]} Rxd5 {[%emt 0:01:21]} 27. Qa8+ {[%emt 0:00:00]} Rb8 {[%emt 0:00:00]} 28. Qxd5 {[%emt 0:00:00]} Bd6 {[%emt 0:00:56]} 29. Re1 {[%emt 0:05:29]} Qe6 {[%emt 0:03:16]} 30. Qa5 {[%emt 0:01:17]} Qd7 {[%emt 0:02:37]} 31. Bxd6 {[%emt 0:00:00]} Qxd6 {[%emt 0:00:00]} 32. Qf5+ {[%emt 0:00:00]} 1-0

[Event "Fagernes GM Open Autumn 2024"]
[Site "Fagernes"]
[Date "2024.10.07"]
[Round "2.4"]
[White "Laddha, Shubh Jayesh"]
[Black "Ghasi, Ameet K"]
[Result "0-1"]
[ECO "B12"]
[WhiteElo "2308"]
[BlackElo "2503"]
[Annotator "TA"]
[PlyCount "90"]
[EventDate "2024.10.03"]
[EventType "swiss"]
[EventCountry "NOR"]
[SourceTitle "playchess.com"]
[Source "ChessBase"]
[SourceQuality "1"]
[TimeControl "40/6000:2400+30"]

{[%evp 9,90,18,4,4,14,8,13,4,12,8,6,0,0,0,10,0,15,14,12,2,14,0,12,0,0,0,0,0,0,-7,0,0,0,0,-14,-22,9,5,10,0,0,-12,-18,-20,-2,-76,-84,-135,-121,-124,-116,-127,-35,-29,-40,-129,-81,-180,-179,-219,-187,-309,-290,-360,-355,-555,-539,-639,-598,-729,-668,-711,-647,-29978,-29978,-29982,-29983,-29983,-29984,-29984,-29985,-29990,-29989]} 1. e4 {[%emt 0:00:00][%cal Be2e4,Be4e5][%mdl 32]} c6 {[%emt 0:00:40]} 2. d4 {[%emt 0:00:00]} d5 {[%emt 0:00:00]} 3. e5 {[%emt 0:00:00]} Bf5 {[%emt 0:00:56]} 4. h4 {[%emt 0:00:00]} h5 {[%emt 0:00:00]} 5. Bd3 {[%emt 0:00:00]} Bxd3 {[%emt 0:00:00]} 6. Qxd3 {[%emt 0:00:00][%cal Oe5e6]} Qa5+ {[%emt 0:00:00]} 7. Nd2 {[%emt 0:00:00][%cal Oe5e6]} e6 {[%emt 0:00:00]} 8. Ngf3 {[%emt 0:00:00] Die Stellung ist ausgeglichen.} Nh6 {[%emt 0:00:00]} 9. O-O {[%emt 0:00:00]} Nf5 {[%emt 0:00:00]} 10. Nb3 {[%emt 0:00:00]} Qa6 {[%emt 0:00:00]} 11. Qd1 {[%emt 0:00:00]} b6 {[%emt 0:00:00]} 12. Bg5 {[%emt 0:02:19]} c5 {[%emt 0:01:11]} 13. dxc5 {[%emt 0:00:29]} Bxc5 {[%emt 0:00:53]} 14. c3 {[%emt 0:07:40]} Nc6 {[%emt 0:01:43]} 15. Re1 {[%emt 0:02:49]} Rc8 {[%emt 0:01:21][%cal Ba8c8,Bc8c7,Bc7d7][%mdl 32]} 16. Nxc5 {[%emt 0:05:48]} bxc5 {[%emt 0:00:00]} 17. b3 {[%emt 0:00:00]} Rc7 {[%emt 0:00:10]} 18. Qd2 {[%emt 0:07:39]} Rd7 {[%emt 0:08:52]} 19. Rad1 {[%emt 0:05:21]} Qa5 {[%emt 0:17:56]} 20. c4 {[%emt 0:21:47][%cal Rc4d5]} Qb6 {[%emt 0:17:12]} 21. cxd5 {[%emt 0:09:11]} Rxd5 {[%emt 0:00:00]} 22. Qc2 {[%emt 0:01:17] [#] Droht stark Rxd5.} Rxd1 {[%emt 0:14:04]} 23. Rxd1 {[%emt 0:00:00]} O-O {[%emt 0:00:00]} 24. Qe2 {[%emt 0:05:56]} Qa5 {[%emt 0:06:58]} 25. Bf4 {[%emt 0:09:40]} Ncd4 {[%emt 0:04:58]} 26. Nxd4 {[%emt 0:00:44]} cxd4 {[%emt 0:00:14]} 27. Qxh5 {[%emt 0:11:07]} (27. Rd2 $11) 27... Qxa2 $17 {[%emt 0:00:00]} 28. Qg4 {[%emt 0:00:21]} (28. Rd3 $142) 28... Qxb3 {[%emt 0:02:22]} 29. h5 {[%emt 0:00:19]} Kh7 {[%emt 0:01:37]} 30. Qe2 {[%emt 0:01:27]} Rd8 {[%emt 0:03:45] Schwarz steht aktiver.} (30... Qd5 $17 {Weiss muss nun ...Rb8 beachten.} 31. f3 (31. g4 Nh4 $19) 31... Rd8) 31. Rd3 $15 {[%emt 0:00:08]} Qd5 $36 {[%emt 0:04:40][%mdl 2048] Schwarz hat Druck.} 32. Kh2 {[%emt 0:02:32]} ({Vorzuziehen ist} 32. g4 $1 $15 Nh6 (32... Nh4 33. f3 $16) 33. f3) 32... Rd7 {[%emt 0:00:39]} (32... Rb8 $142 33. Qf3 Rb5 34. Qxd5 Rxd5) 33. g4 {[%emt 0:01:14] [#]} (33. Bg5 $17) 33... Ne7 $1 $19 {[%emt 0:00:00]} 34. Bg3 {[%emt 0:01:30]} Kg8 {[%emt 0:03:44]} 35. h6 {[%emt 0:00:07]} (35. Bf4 {kämpft weiter.}) 35... gxh6 {[%emt 0:00:46]} 36. Qd2 {[%emt 0:00:00]} Ng6 {[%emt 0:01:04]} 37. f4 {[%emt 0:00:00]} (37. Qe2 $142) 37... Qe4 {[%emt 0:00:21]} 38. Rb3 {[%emt 0:00:00]} Rc7 {[%emt 0:00:00]} 39. Rb2 {[%emt 0:00:00] Wehrt Rc2 ab} d3 {[%emt 0:01:05] Zielt auf ...Rc2 ab.} 40. f5 {[%emt 0:00:00]} Nxe5 {[%emt 0:00:13] ( -> ...Nf3+)} 41. Rb8+ {[%emt 0:07:56]} Kg7 {[%emt 0:06:13] Schwarz setzt Matt.} 42. Bxe5+ {[%emt 0:02:38]} Qxe5+ {[%emt 0:00:10]} 43. Kh3 {[%emt 0:00:23]} Rc2 {[%emt 0:01:02]} 44. f6+ {[%emt 0:01:21]} Qxf6 {[%emt 0:00:11]} ({Und nicht} 44... Kxf6 45. Qxh6+ Ke7 46. Qf8+ Kd7 47. Qxf7+ Kd6 48. Qf8+ Kc6 49. Qc8+ Qc7 (49... Kd5 $2 50. Rb5+ Kd4 51. Qd8+ $18) 50. Qxe6+ Kc5 51. Qe3+ (51. Rc8 $2 Rh2#) 51... Kc6 52. Qf3+ Kc5 53. Qe3+ Kc4 54. Qe4+ Kc5 55. Qe3+ $11) 45. Qd1 {[%emt 0:01:11]} Qe5 {[%emt 0:00:32] Gewichteter Fehlerwert: Weiß=0.42/Schwarz=0.11 (sehr präzise) .  Fehler:       	Weiß=6     	Schwarz=2     Ungenau:       	---       	Schwarz=1     OK:         	Weiß=9     	Schwarz=10    Bester:       	Weiß=2     	Schwarz=4     Stark:        	---       	Schwarz=1} 0-1

[Event "Fagernes GM Open Autumn 2024"]
[Site "Fagernes"]
[Date "2024.10.07"]
[Round "2.5"]
[White "Mitusov, Semen"]
[Black "Sieber, Fiona"]
[Result "1-0"]
[ECO "C44"]
[WhiteElo "2486"]
[BlackElo "2264"]
[Annotator "TA"]
[PlyCount "59"]
[EventDate "2024.10.03"]
[EventType "swiss"]
[EventCountry "NOR"]
[SourceTitle "playchess.com"]
[Source "ChessBase"]
[SourceQuality "1"]
[TimeControl "40/6000:2400+30"]

{[%evp 11,59,104,102,110,114,92,99,101,172,175,175,168,173,172,181,176,167,177,220,221,210,209,201,183,200,204,251,205,200,214,320,327,334,348,432,412,403,407,575,567,528,511,754,739,744,744,756,756,728,712]} 1. e4 {[%emt 0:00:32]} e5 {[%emt 0:00:00]} 2. Nf3 {[%emt 0:00:15]} Nc6 {[%emt 0:00:00]} 3. c3 {[%emt 0:00:18]} d5 {[%emt 0:05:41]} 4. Qa4 {[%emt 0:00:00]} dxe4 {[%emt 0:17:19]} 5. Nxe5 {[%emt 0:00:00]} Qd5 {[%emt 0:00:38]} 6. Nxc6 {[%emt 0:00:00]} bxc6 {[%emt 0:00:00]} 7. Bc4 {[%emt 0:00:00]} Qd6 {[%emt 0:00:16] [#]} 8. d3 $1 {[%emt 0:06:26][%mdl 512]} exd3 {[%emt 0:06:38]} (8... Nf6 9. dxe4) 9. O-O {[%emt 0:02:17][%cal Oc4d3] White is better.} Be7 {[%emt 0:13:40]} (9... Nf6 $16) 10. Rd1 $18 {[%emt 0:13:31]} Bf5 {[%emt 0:02:39] [#]} 11. Bf4 $1 {[%emt 0:05:00][%mdl 512]} Qd7 {[%emt 0:10:30] [#]} 12. Bxd3 $1 {[%emt 0:06:39][%mdl 512]} Rd8 {[%emt 0:00:44]} (12... Bxd3 13. Rxd3) 13. Be2 {[%emt 0:04:57]} Qe6 {[%emt 0:00:00]} 14. Re1 {[%emt 0:10:04] Strongly threatening Nd2.} Qe4 {[%emt 0:08:01]} 15. Qxe4 {[%emt 0:00:53]} (15. Qxa7 $2 {is the wrong capture.} Qxf4 16. Bf3 Kf8 17. Bxc6 h5 $19) 15... Bxe4 {[%emt 0:00:00]} 16. Bxc7 {[%emt 0:04:05]} Rd7 {[%emt 0:00:51]} 17. Bf4 {[%emt 0:05:26]} Nf6 {[%emt 0:05:59]} 18. Nd2 {[%emt 0:02:03][%cal Bb1d2,Bd2c4,Bc4a5,Ba5b7,Bb7c5,Bc5e6][%mdl 32] Nxe4 is the strong threat.} Bf5 {[%emt 0:02:01]} 19. Bf3 {[%emt 0:06:36]} Nd5 {[%emt 0:00:03]} 20. Bg3 {[%emt 0:00:00]} Kd8 {[%emt 0:06:30]} (20... O-O {keeps fighting.} 21. Nb3 Bf6) 21. Nc4 {[%emt 0:06:20] Threatens to win with Ne5.} Bf6 {[%emt 0:01:10]} 22. Na5 {[%emt 0:03:31]} c5 {[%emt 0:00:05]} 23. Rad1 {[%emt 0:00:26]} Be6 {[%emt 0:02:44]} 24. c4 {[%emt 0:03:53]} Nb4 {[%emt 0:02:16]} (24... Nb6 {might work better.} 25. Nb7+ Ke7 26. Rxd7+ (26. Nxc5 Rxd1 27. Bxd1 Nxc4 $18) 26... Kxd7 27. Nxc5+ Ke7 28. Nxe6 fxe6) 25. Nb7+ {[%emt 0:00:35] White is clearly winning.} Kc8 {[%emt 0:01:15]} 26. Nxc5 {[%emt 0:00:11]} Rd4 {[%emt 0:02:34]} 27. Bb7+ {[%emt 0:00:49]} Kd8 {[%emt 0:00:00]} 28. Rxd4+ {[%emt 0:00:00]} Bxd4 {[%emt 0:00:00]} 29. Rd1 {[%emt 0:00:00]} Nc2 {[%emt 0:00:00]} 30. Nxe6+ {[%emt 0:00:00] Black did not feel at home in the position after the opening.   Weighted Error Value: White=0.04 (flawless) /Black=0.34.  Mistake:       	---       	Black=3      Inaccurate:     	---       	Black=1      OK:         	White=15    	Black=7      Best:        	---       	Black=1      Brilliant:      	White=1     	---} 1-0